Cogmind - Beta 15 @@@ ROGUE MODE // 2025.06.02 @ 16:35:27 Player: Palikka Result: Destroyed by RU-N14 with RU-N14's Throwing Claymores Performance ------------- Evolutions (4) 2000 Regions Visited (7) 1400 Robots Destroyed (92) 460 Value Destroyed (1862) 1862 Prototype IDs (10) 200 Alien Tech Used (0) 0 Bonus (402) 402 TOTAL SCORE: 6324 Bonus ------- Registered with UFD 300 Met Optimus in HQ 500 Met Imprinter 300 Friendly Fire -698 Cogmind --------- Core Integrity 0/850 Matter 261/300 Energy 100/100 System Corruption 14% Temperature Cool (0) Movement Core (1350) Ox26 Location -6/Zion Parts ------- > --- POWER (2) -------- (None) > --- PROPULSION (4) --- (None) > --- UTILITY (7) ------ Huge Storage Unit Improved Signal Interpreter Salvage Targeting Computer > --- WEAPON (2) ------- (None) > --- INVENTORY (25) --- Makeshift Power Source Angular Momentum Engine Improved Carbon-fiber Leg Makeshift Leg Makeshift Leg Makeshift Leg Makeshift Leg Armored Leg High-capacity Battery (250) High-capacity Matter Pod (200) Advanced Sensor Array Makeshift Terrain Scan Processor Heavy Riot Gun Proton Cannon Autogun Slug Cannon Slug Cannon Grenade Launcher CPS Tube (2) Makeshift Hammer Power Maul Phasing Sabre Makeshift Spear Vortex Trap Peak State ------------ > --- POWER ------------ Light Fission Core Light Fission Core > --- PROPULSION ------- Armored Treads Carbon-fiber Leg Improved Carbon-fiber Leg Compact Wheel > --- UTILITY ---------- Improved Cooling System Huge Storage Unit Advanced Sensor Array Improved Signal Interpreter Improved Particle Charger Improved Heavy Armor Plating > --- WEAPON ----------- RU-N14's Throwing Claymores RU-N14's Throwing Claymores > --- INVENTORY -------- Light Angular Momentum Engine Makeshift Leg Improved Heat Sink High-capacity Battery High-capacity Matter Pod Makeshift Terrain Scan Processor Hardened Medium Armor Plating Force Field Heavy Riot Gun Proton Cannon Heavy Particle Cannon Plasma Cannon Autogun Autogun Battle Rifle High-powered Shotgun Heavy Machine Gun Slug Cannon Slug Cannon Grenade Launcher CPS Tube RU-N14's Throwing Claymores Power Maul Phasing Sabre Vortex Trap [Rating: 71] Favorites ----------- Power Light Fission Core Engine Ion Engine Power Core Light Fission Core Propulsion Light Treads Treads Light Treads Leg Improved Carbon-fiber Leg Wheel Compact Wheel Utility Huge Storage Unit Device Advanced Sensor Array Storage Huge Storage Unit Processor Improved Signal Interpreter Protection Improved Heavy Armor Plating Weapon High-powered Shotgun Energy Gun Subdweller Laser Energy Cannon Heavy Plasma Cannon Ballistic Gun High-powered Shotgun Launcher Grenade Launcher Special Weapon RU-N14's Throwing Claymores Impact Weapon Power Maul Slashing Weapon Phasing Sabre Build | -11 -10 -10 -9 -6 -6 -6 -6 ------- Run | Yrd Mat Sub Scr Fac Low Low Zio Slots Evolved 8 | . . . . 8 . . . Power 1 | . . . . 1 . . . Propulsion 2 | . . . . 2 . . . Utility 5 | . . . . 5 . . . Weapon . | . . . . . . . . Parts Attached 90 | 7 15 6 10 12 12 . 28 Power 15 | 1 4 1 1 1 2 . 5 Engine 9 | 1 3 1 . . . . 4 Core 6 | . 1 . 1 1 2 . 1 Reactor . | . . . . . . . . Propulsion 26 | 2 5 1 . 2 3 . 13 Treads 11 | 1 5 1 . 1 1 . 2 Leg 13 | . . . . . 2 . 11 Wheel 2 | 1 . . . 1 . . . Hover . | . . . . . . . . Flight . | . . . . . . . . Utility 25 | 2 4 . 4 7 4 . 4 Device 12 | 1 1 . 2 5 2 . 1 Storage 5 | 1 2 . 1 1 . . . Processor 3 | . . . . 1 1 . 1 Hackware . | . . . . . . . . Protection 5 | . 1 . 1 . 1 . 2 Artifact . | . . . . . . . . Weapon 24 | 2 2 4 5 2 3 . 6 Energy Gun 1 | . . 1 . . . . . Energy Cannon 5 | . . . 1 2 1 . 1 Ballistic Gun 11 | 2 1 2 4 . 1 . 1 Ballistic Cannon . | . . . . . . . . Launcher 2 | . 1 1 . . . . . Special Weapon 3 | . . . . . . . 3 Impact Weapon 1 | . . . . . 1 . . Slashing Weapon 1 | . . . . . . . 1 Piercing Weapon . | . . . . . . . . Special Melee Weapon . | . . . . . . . . Unidentified Prototypes 2 | . . . . 1 . . 1 Corrupted Parts 2 | . . . . . 1 . 1 System Corruption 11 | . . . . . 7 . 4 Parts Lost 40 | . 1 . . 14 . . 25 Power 8 | . 1 . . 2 . . 5 Propulsion 10 | . . . . 3 . . 7 Utility 14 | . . . . 7 . . 7 Weapon 8 | . . . . 2 . . 6 Highest Loss Streak 12 | . 1 . . 12 . . 9 To Critical Strikes . | . . . . . . . . Average Backups 16 | 4 11 15 14 16 15 16 22 Power . | . 1 1 . . 1 . . Propulsion 1 | 2 4 3 1 . . . 1 Utility 6 | . 3 5 5 7 7 7 6 Weapon 7 | . 2 4 6 6 6 8 12 Tool/Special . | . . . . . . . . Unused Backups 45 | . 6 . 13 3 . . 23 Power 5 | . . . 1 1 . . 3 Propulsion 10 | . 4 . 1 . . . 5 Utility 14 | . 1 . 6 1 . . 6 Weapon 15 | . 1 . 5 1 . . 8 Tool/Special 1 | . . . . . . . 1 Average Slot Usage (%) 89 | . 97 100 99 81 60 93 89 Engine 5 | . 11 14 8 . . . 2 Core 6 | . 2 . 5 7 6 13 10 Treads 16 | . 27 28 27 19 . 6 6 Leg 4 | . . . . . 6 13 12 Wheel 2 | . . . . . 6 6 5 Device 12 | . 12 9 1 24 6 20 17 Storage 9 | . 14 14 13 6 6 6 6 Processor 3 | . . . . 5 5 6 6 Protection 6 | . . 4 12 1 5 6 6 Energy Gun 1 | . . 11 2 . . . . Energy Cannon 2 | . . . 1 6 . 6 2 Ballistic Gun 12 | . 27 10 24 5 9 1 1 Impact Weapon 1 | . . . . . 2 4 3 Peak Build Rating 71 | 9 10 11 25 56 58 61 71 Average Rating 34 | 6 8 10 14 45 39 59 61 On Entrance 21 | . 9 8 10 19 10 57 61 Naked Turns . | . . . . . . . . Heaviest Build 135 | 11 30 35 40 120 128 131 135 Greatest Support 80 | 16 40 40 40 60 16 16 80 Greatest Overweight (x) 26 | . . . . 7 7 8 26 Average Overweight (x) 2 | . . . . 1 6 7 6 Largest Inventory Capacity 25 | 8 15 15 15 25 25 25 25 Average Capacity 19 | 7 12 15 14 22 25 25 25 Most Carried 25 | 8 15 15 15 25 22 19 25 Average Carried 17 | 5 11 14 14 17 16 17 23 Final Capacity 25 | 8 15 15 15 25 25 25 25 Final Carried 24 | 8 15 15 15 23 14 19 24 Class Distribution -------------------- 85% | Mutant 8% | Skirmisher 5% | Scavenger-Mutant Dominant Class ---------------- Mutant | -10/Materials Mutant | -10/Subcaves Mutant | -9/Scraptown Skirmisher | -6/Factory Mutant | -6/Lower Caves Mutant | -6/Lower Caves Mutant | -6/Zion Resources | -11 -10 -10 -9 -6 -6 -6 -6 ----------- Run | Yrd Mat Sub Scr Fac Low Low Zio Matter Collected 3209 | 286 698 122 202 477 541 142 741 Remotely . | . . . . . . . . Salvage Created 3116 | 77 573 122 . 551 380 107 1306 Parts 178 | 6 36 13 . 28 10 3 82 Haulers Intercepted 2 | . 2 . . . . . . Recyclers Shooed 5 | 1 3 . . 1 . . . Parts Field Recycled . | . . . . . . . . Retrieved Matter . | . . . . . . . . Parts Self-Destructed 13 | . . 5 . . 4 . 4 Prevented 2 | . . . . . . 2 . Kills | -11 -10 -10 -9 -6 -6 -6 -6 ------- Run | Yrd Mat Sub Scr Fac Low Low Zio Combat Hostiles Destroyed 36 | . 13 5 . 11 . 1 6 Guns 22 | . 11 5 . 3 . 1 2 Cannons 10 | . . . . 8 . . 2 AOE 2 | . 2 . . . . . . Classes Destroyed 15 | 2 4 1 . 3 3 . 2 Builder 1 | . . . . 1 . . . Tunneler 1 | 1 . . . . . . . Hauler 2 | . 2 . . . . . . Recycler 3 | 1 2 . . . . . . Watcher 3 | . 2 . . 1 . . . Swarmer 15 | . 9 3 . 3 . . . Grunt 7 | . 4 . . 3 . . . Specialist 2 | . . . . 2 . . . Programmer 4 | . . . . 3 . 1 . Subdweller 2 | . . 2 . . . . . Zionite 43 | . . . . . . . 43 Decomposer 5 | . . . . . 4 1 . Samaritan 4 | . . . . . 3 1 . Tinkerer 2 | . . . . . . . 2 Thug 3 | . . . . . 2 . 1 Mutant 6 | . . . . . 1 . 5 Best Kill Streak 6 | 1 4 3 . 3 . 1 6 Combat Bots Only 4 | . 4 3 . 3 . 1 1 Max Kills in Single Turn 2 | 1 2 1 . 2 1 1 2 Gunslinging . | . . . . . . . . Exploded 2 | . 2 . . . . . . Melee . | . . . . . . . . Uniques/NPCs Destroyed . | . . . . . . . . Combat | -11 -10 -10 -9 -6 -6 -6 -6 -------- Run | Yrd Mat Sub Scr Fac Low Low Zio Hostile Shots Fired 496 | . 72 39 . 114 . 16 255 Missed 150 | . 23 11 . 25 . 3 88 Hits 346 | . 49 28 . 89 . 13 167 Melee 33 | . . . . . . . 33 Projectile 313 | . 49 28 . 89 . 13 134 AOE 6 | . . . . . . . 6 Critical Strikes 24 | . 1 1 . 9 . 3 10 Part Disruptions 5 | . . . . 4 . . 1 Damage Taken 6547 | . 529 400 . 1901 . 126 3591 Core 1051 | . 118 31 . 459 . . 443 Absorbed by Shields 144 | . . . . . . 71 73 Regen/Repaired (Parts) 210 | . . . 210 . . . . Core Remaining (%) 70 | 100 . . 40 . . . . Volleys Fired 358 | 8 76 26 . 74 25 9 140 Largest 2 | 2 2 2 . 2 2 2 2 Hottest 175 | 40 40 80 . 175 46 98 155 Shots Fired 662 | 16 151 49 . 123 52 20 251 Gun 396 | 16 150 46 . 47 52 9 76 Cannon 244 | . . . . 76 . 11 157 Launcher 12 | . 1 3 . . . . 8 Special 10 | . . . . . . . 10 Kinetic 391 | 16 150 41 . 47 52 9 76 Thermal 249 | . . 5 . 76 . 11 157 Explosive 22 | . 1 3 . . . . 18 Electromagnetic . | . . . . . . . . Robot Hit Streak 15 | 5 8 7 . 15 8 2 12 Robot Miss Streak 8 | 1 5 3 . 8 3 2 4 Penetration Max . | . . . . . . . . Secondary Targets 2 | . 1 . . . . . 1 Max Gunslinging Chain 1 | . 1 . . . . . 1 Shots Hit Robots 407 | 12 94 30 . 72 38 10 151 Core Hits 156 | 4 37 9 . 28 14 3 61 Critical Kills 4 | . 1 . . . 1 . 2 Critical Parts Destroyed 3 | . . . . . . . 3 Critical Strikes 8 | . 1 1 . . 1 . 5 Meltdown 1 | . . . . . . . 1 Destroy 4 | . 1 1 . . . . 2 Smash 3 | . . . . . 1 . 2 Melee Attacks 41 | . . . . . 16 6 19 Impact 41 | . . . . . 16 6 19 Slashing . | . . . . . . . . Piercing . | . . . . . . . . Sneak Attacks 6 | . . . . . 4 2 . Combat Hostiles . | . . . . . . . . Follow-up Attacks . | . . . . . . . . Damage Inflicted 9043 | 96 932 336 . 2216 931 412 4120 Guns 3304 | 96 779 336 . 639 511 77 866 Cannons 4110 | . . . . 1577 . 148 2385 Explosions 720 | . 153 . . . . . 567 Melee 909 | . . . . . 420 187 302 Ramming . | . . . . . . . . Kinetic 3217 | 96 779 249 . 639 511 77 866 Thermal 4197 | . . 87 . 1577 . 148 2385 Explosive 720 | . 153 . . . . . 567 Electromagnetic . | . . . . . . . . Impact 909 | . . . . . 420 187 302 Slashing . | . . . . . . . . Piercing . | . . . . . . . . Highest Corruption 14 | . . . . 5 12 12 14 Average Corruption 6 | . . . . 2 5 12 11 Corruption Purged . | . . . . . . . . Corruption Blocked . | . . . . . . . . Effects 138 | . . . . 16 45 23 54 Message Errors 36 | . . . . 8 14 7 7 Matter Fused 35 | . . . . 3 12 6 14 Heat Flow Errors 12 | . . . . 3 2 4 3 Energy Discharges 11 | . . . . . 3 1 7 Parts Rejected 1 | . . . . . . . 1 Parts Fused 2 | . . . . . 1 . 1 Data Loss (minor) 12 | . . . . 1 6 1 4 Data Loss (major) 5 | . . . . . 3 1 1 Misfires 6 | . . . . . 2 3 1 Alerts 6 | . . . . 1 2 . 3 Weapon Failures 12 | . . . . . . . 12 Overload Shots . | . . . . . . . . Overflow Damage 642 | . 10 . . 47 140 126 319 Projectiles 141 | . . . . 47 . 14 80 Explosions 10 | . 10 . . . . . . Melee 491 | . . . . . 140 112 239 Knockbacks 3 | . . . . . 1 . 2 Impact 3 | . . . . . 1 . 2 Kinetic . | . . . . . . . . Secondary . | . . . . . . . . Self-Inflicted Damage 4 | . . . . . . . 4 Shots 1 | . . . . . . . 1 Rammed . | . . . . . . . . Targets Rammed . | . . . . . . . . Kicked . | . . . . . . . . Crushed . | . . . . . . . . Highest Temperature 243 | . 18 . . 231 210 159 243 Average Temperature 57 | . 8 . . 52 104 52 68 Received Heat Transfer 972 | . 207 84 . 289 . . 392 Siege Activations . | . . . . . . . . Martial Activations . | . . . . . . . . Shielding Activations . | . . . . . . . . Robots Disrupted . | . . . . . . . . Combat Hostiles . | . . . . . . . . Robots Corrupted 5 | . . . . . 1 1 3 Combat Hostiles 3 | . . . . . . . 3 Parts Fried 4 | . . . . . 3 . 1 Impact Corruptions 18 | . . . . . 3 6 9 Robots Melted 2 | . . . . . . . 2 Combat Hostiles 1 | . . . . . . . 1 Parts Melted 23 | . . 2 . 4 . 1 16 Heat Transferred 6237 | . . 100 . 2259 . 148 3730 Parts Sabotaged . | . . . . . . . . Parts Stolen . | . . . . . . . . Parts Stripped . | . . . . . . . . Power Chain Reactions . | . . . . . . . . Alert | -11 -10 -10 -9 -6 -6 -6 -6 ------- Run | Yrd Mat Sub Scr Fac Low Low Zio Maximum Alert Level 1 | . . . . 1 . . . Low Security (%) 91 | 100 100 . . 84 . . . Level 1 8 | . . . . 15 . . . Level 2 . | . . . . . . . . Level 3 . | . . . . . . . . Level 4 . | . . . . . . . . Level 5 . | . . . . . . . . High Security . | . . . . . . . . Max Security . | . . . . . . . . Peak Influence 237 | 5 145 . . 237 . . . Initial . | . . . . . . . . Average 46 | 1 34 . . 56 . . . Influence Increases 996 | 10 419 70 . 452 . 30 15 Destroy 0b10 Robot/C 560 | . 260 60 . 220 . 20 . Destroy 0b10 Robot/NC 65 | 10 30 . . 10 . . 15 Destroy Leader 140 | . 58 10 . 62 . 10 . Successful Hack 31 | . 16 . . 15 . . . Select Force Hacks 30 | . 30 . . . . . . Disable Machine 30 | . . . . 30 . . . Destroy Structure 35 | . 10 . . 25 . . . Lose Combat Pursuer 105 | . 15 . . 90 . . . Influence Decreases 996 | 10 419 70 . 365 87 30 15 Entered New Map 33 | . . . . . 33 . . Time Decay 808 | 10 404 70 . 225 54 30 15 Lost Part 150 | . 10 . . 140 . . . Purge Threat 5 | . 5 . . . . . . Squads Dispatched 11 | . 1 . . 10 . . . Investigation 1 | . 1 . . . . . . Extermination 4 | . . . . 4 . . . Reinforcement 5 | . . . . 5 . . . Assault . | . . . . . . . . Garrison 1 | . . . . 1 . . . Intercept . | . . . . . . . . Searches Triggered . | . . . . . . . . Construction Impeded . | . . . . . . . . Haulers Reinforced . | . . . . . . . . Active Scanning Responses . | . . . . . . . . Cargo Convoy Interrupts 1 | . . . . 1 . . . Stealth | -11 -10 -10 -9 -6 -6 -6 -6 --------- Run | Yrd Mat Sub Scr Fac Low Low Zio Distress Signals 4 | . 2 . . 2 . . . Communications Jammed 14 | . . . . 14 . . . Distress Signals 14 | . . . . 14 . . . Times Spotted 114 | . 26 5 . 28 . 1 54 Peak Tracking Total 7 | . 4 3 . 6 . 1 7 Tactical Retreats 6 | . 1 . . 3 . . 2 Traps | -11 -10 -10 -9 -6 -6 -6 -6 ------- Run | Yrd Mat Sub Scr Fac Low Low Zio Traps Triggered 2 | . 1 . . 1 . . . Indirectly . | . . . . . . . . Trap Hack Attempts . | . . . . . . . . Triggered . | . . . . . . . . Disarmed . | . . . . . . . . Reprogrammed . | . . . . . . . . Reused . | . . . . . . . . Traps Extracted . | . . . . . . . . Installed . | . . . . . . . . Triggered . | . . . . . . . . Most Traps Carried 1 | . . . 1 1 1 1 1 Machines | -11 -10 -10 -9 -6 -6 -6 -6 ---------- Run | Yrd Mat Sub Scr Fac Low Low Zio Machines Disabled 5 | . . . . 2 . . 3 Max in Single Turn 1 | . . . . 1 . . 1 Machines Repaired . | . . . . . . . . Machines Dismantled . | . . . . . . . . Machines Sabotaged . | . . . . . . . . Overloaded Fab Kills . | . . . . . . . . Hacking | -11 -10 -10 -9 -6 -6 -6 -6 --------- Run | Yrd Mat Sub Scr Fac Low Low Zio Machines Accessed 20 | . 10 . 7 3 . . . Terminals 11 | . 8 . . 3 . . . Fabricators . | . . . . . . . . Repair Stations 1 | . 1 . . . . . . Recycling Units 1 | . 1 . . . . . . Scanalyzers . | . . . . . . . . Garrison Access . | . . . . . . . . Total Hacks 49 | . 23 . 18 8 . . . Successful 38 | . 14 . 18 6 . . . Failed 11 | . 9 . . 2 . . . Catastrophic 3 | . 2 . . 1 . . . Database Lockouts . | . . . . . . . . Manual 23 | . 18 . . 5 . . . Terminals 28 | . 20 . . 8 . . . Fabricators . | . . . . . . . . Repair Stations 1 | . 1 . . . . . . Recycling Units 2 | . 2 . . . . . . Scanalyzers . | . . . . . . . . Garrison Access . | . . . . . . . . Terminal Hacks 24 | . 3 . 18 3 . . . Record 17 | . . . 17 . . . . Branch Access Points 1 | . . . . 1 . . . Emergency Access Points 1 | . . . . 1 . . . Terminal Index 1 | . 1 . . . . . . Alert Level 2 | . 1 . . 1 . . . Unreport Threat 1 | . 1 . . . . . . Proto ID Catalog 1 | . . . 1 . . . . Fabricator Hacks . | . . . . . . . . Repair Station Hacks . | . . . . . . . . Recycling Unit Hacks . | . . . . . . . . Scanalyzer . | . . . . . . . . Garrison Access Hacks . | . . . . . . . . Unauthorized Hacks 13 | . 11 . . 2 . . . Terminals 12 | . 10 . . 2 . . . Track 4 | . 3 . . 1 . . . Botnet 3 | . 2 . . 1 . . . Skim 5 | . 5 . . . . . . Fabricators . | . . . . . . . . Repair Stations . | . . . . . . . . Recycling Units 1 | . 1 . . . . . . Tunnel 1 | . 1 . . . . . . Scanalyzers . | . . . . . . . . Garrison Access . | . . . . . . . . Data Cores Recovered . | . . . . . . . . Used . | . . . . . . . . Hacking Detections 12 | . 9 . . 3 . . . Full Trace Events . | . . . . . . . . Feedback Events . | . . . . . . . . Feedback Blocked . | . . . . . . . . Robot Schematics Acquired 3 | . . . . . . . 3 Robots Built . | . . . . . . . . Authchips . | . . . . . . . . Time . | . . . . . . . . Total Robot Build Rating . | . . . . . . . . Part Schematics Acquired 14 | . . . . . . . 14 Parts Built . | . . . . . . . . Authchips . | . . . . . . . . Time . | . . . . . . . . Total Part Build Rating . | . . . . . . . . Parts Repaired . | . . . . . . . . Time . | . . . . . . . . Parts Recycled . | . . . . . . . . Recycled Matter . | . . . . . . . . Retrieved Matter . | . . . . . . . . Retrieved Components . | . . . . . . . . Parts Scanalyzed . | . . . . . . . . Part Schematics Acquired . | . . . . . . . . Parts Damaged . | . . . . . . . . Bothacking | -11 -10 -10 -9 -6 -6 -6 -6 ------------ Run | Yrd Mat Sub Scr Fac Low Low Zio Used RIF Installer . | . . . . . . . . Robots Hacked . | . . . . . . . . Non-combat . | . . . . . . . . Combat . | . . . . . . . . Robot Hacks Applied . | . . . . . . . . Relay Couplers Released . | . . . . . . . . Fabnet Peak Effective % . | . . . . . . . . Robots Rewired . | . . . . . . . . Allies Hacked . | . . . . . . . . Hacks Repelled . | . . . . . . . . Allies | -11 -10 -10 -9 -6 -6 -6 -6 -------- Run | Yrd Mat Sub Scr Fac Low Low Zio Total Allies . | . . . . . . . . Largest Group . | . . . . . . . . Highest-Rated Group . | . . . . . . . . Highest-Rated Ally . | . . . . . . . . Total Orders . | . . . . . . . . Ally Attacks . | . . . . . . . . Total Damage . | . . . . . . . . Kills . | . . . . . . . . Allies Corrupted . | . . . . . . . . Allies Melted . | . . . . . . . . Intel | -11 -10 -10 -9 -6 -6 -6 -6 ------- Run | Yrd Mat Sub Scr Fac Low Low Zio Active Infowar (turns) 9679 | 38 1400 774 270 2229 1785 577 2606 Sensors 4968 | . . . . . 1785 577 2606 IFF 1795 | . . . 270 1525 . . . Terrain 3011 | 38 661 774 . 1538 . . . Seismic 739 | . 739 . . . . . . Jamming 1659 | . . . . 1659 . . . Robot Analysis Total . | . . . . . . . . Derelict Logs Recovered 7 | . . 2 3 . . 1 1 Drone Launches . | . . . . . . . . Drone Recoveries . | . . . . . . . . Exploration | -11 -10 -10 -9 -6 -6 -6 -6 ------------- Run | Yrd Mat Sub Scr Fac Low Low Zio Turns Passed 14683 | 93 1589 1107 3599 2256 1785 615 3639 Spaces Moved 6707 | 54 849 279 2091 811 871 275 1477 Core 4 | 3 . . . . . . 1 Treads 3887 | . 799 279 2091 718 . . . Legs 114 | . . . . . . . 114 Wheels 2702 | 51 50 . . 93 871 275 1362 Hover . | . . . . . . . . Flight . | . . . . . . . . Fastest Speed 50 | 50 100 160 160 160 190 205 205 Average Speed 181 | 97 156 160 160 208 190 205 209 Slowest Speed 1350 | 100 160 160 160 240 205 220 1350 Overloaded Moves . | . . . . . . . . Propulsion Burnouts . | . . . . . . . . Robots Hopped . | . . . . . . . . Potential Cave-ins . | . . . . . . . . Cave-ins Triggered . | . . . . . . . . Exploration Rate (%) 55 | 4 100 16 95 21 78 42 88 Regions Visited 7 Branch Regions 5 Pre-discovered Areas 7 | . 2 2 2 . . . 1 Known Exits Taken 4 | . 1 . . 1 1 1 . Unknown Exits Taken 3 | 1 . 1 1 . . . . Scrap Searched 11 | . . . 7 . 1 1 2 Spaces Dug 38 | . . 8 . 13 12 5 . Terrain Destroyed 109 | . 10 28 . 26 12 10 23 Melee 16 | . . . . . 12 4 . Projectile 37 | . . . . 26 . 6 5 AOE 56 | . 10 28 . . . . 18 Terrain Rammed . | . . . . . . . . Walls Destroyed . | . . . . . . . . Machines Disabled . | . . . . . . . . Actions | -11 -10 -10 -9 -6 -6 -6 -6 --------- Run | Yrd Mat Sub Scr Fac Low Low Zio Total 8545 | 78 996 896 2360 1249 928 297 1741 Wait 1106 | . 13 575 192 313 1 . 12 Move 6700 | 53 848 278 2090 810 870 274 1477 Hop . | . . . . . . . . Pick Up 116 | 9 19 3 30 20 2 5 28 Fast Attach 25 | 7 3 1 1 2 2 . 9 Attach 49 | . 6 2 6 9 10 . 16 Detach 6 | . 2 . 1 1 . . 2 Swap 62 | . 12 6 7 15 2 3 17 Drop 82 | 1 17 5 33 5 . . 21 Fire 358 | 8 76 26 . 74 25 9 140 Melee 41 | . . . . . 16 6 19 Ram . | . . . . . . . . Kick . | . . . . . . . . Crush . | . . . . . . . . Escape Stasis . | . . . . . . . . Rewire . | . . . . . . . . Trap . | . . . . . . . . Miscellaneous . | . . . . . . . . Route ------- -11/Scrapyard -10/Materials (discovered 5 exits: *Mat x3 / *Min / *Sub) -10/Subcaves (discovered 3 exits: Mat x2 / *Scr) -9/Scraptown (discovered 2 exits: *Fac x2) -6/Factory (discovered 4 exits: *Fac x2 / *Low x2) -6/Lower Caves -6/Lower Caves (discovered 2 exits: *Fac / *Zio) -6/Zion (discovered 1 exit: [*Pro]) History --------- Turn | Location | Event 25 | -11/Scrapyard | Discovered new exit (range 15) 94 | -11/Scrapyard | Entered Materials 311 | -10/Materials | Build established: Mutant 467 | -10/Materials | Discovered new exit (range 16) 645 | -10/Materials | Discovered new exit (range 9) 1033 | -10/Materials | Discovered new exit (range 16) 1097 | -10/Materials | Learned 2 Storage zone layouts 1134 | -10/Materials | Learned 4 Subcaves zone layouts 1161 | -10/Materials | Identified exit to Materials 1161 | -10/Materials | Identified exit to Subcaves 1178 | -10/Materials | Loaded intel: 18 trap records 1186 | -10/Materials | Learned location of Storage (-9) 1189 | -10/Materials | Learned 2 Storage zone layouts 1195 | -10/Materials | Identified exit to Mines 1212 | -10/Materials | Learned Storage trap positions 1683 | -10/Materials | Entered Subcaves 1684 | -10/Subcaves | Approached by a straggling Scientist 1684 | -10/Subcaves | Identified exit to Materials 1692 | -10/Subcaves | Learned location of Recycling (-9) 1771 | -10/Subcaves | Core integrity fell below 50% 1804 | -10/Subcaves | Learned location of Zion (-6) 2536 | -10/Subcaves | Scientist uncovered a shortcut to Scraptown 2790 | -10/Subcaves | Entered Scraptown 3108 | -9/Scraptown | Heard Great Nut preacher, LISTEN AND RECITE! 3412 | -9/Scraptown | Scanned Subdweller tech in exchange for log data 3415 | -9/Scraptown | Learned 8 Factory zone layouts 3417 | -9/Scraptown | Learned Research emergency access door positions 3419 | -9/Scraptown | Learned Research stockpile data 3446 | -9/Scraptown | Discovered new exit (range 5) 3611 | -9/Scraptown | Visited CR-KLE's Repair Center 3671 | -9/Scraptown | Visited Bundlers 3819 | -9/Scraptown | Visited Cyclists 3888 | -9/Scraptown | Visited TADAMA 4311 | -9/Scraptown | Visited Fellowship of the Rings 4357 | -9/Scraptown | Visited Symbiants 4391 | -9/Scraptown | Visited Comm Corps 4493 | -9/Scraptown | Visited UFD Registry 4493 | -9/Scraptown | Registered with UFD as "Macebot" 4565 | -9/Scraptown | Entered Cyclist Reading Room 4658 | -9/Scraptown | Visited Abandonware Association 4679 | -9/Scraptown | Learned abandonware demo "REVENGE.EXE" 4925 | -9/Scraptown | Received an X-ray algorithm 4931 | -9/Scraptown | Visited Curators Association 5010 | -9/Scraptown | Visited Research Penetration Think Tank 5048 | -9/Scraptown | Visited Junk Repository 5135 | -9/Scraptown | Visited Chapter 10 5358 | -9/Scraptown | Visited Observation Area 5433 | -9/Scraptown | Visited Science Guys 5561 | -9/Scraptown | Visited Scrap Suit Storage 5580 | -9/Scraptown | Found Scrap Suit 5612 | -9/Scraptown | Visited Scrapoid Pod Storage 5816 | -9/Scraptown | CR-KLE repaired 7 parts 6299 | -9/Scraptown | Met Optimus 6299 | -9/Scraptown | Accepted into 0bPrime 6383 | -9/Scraptown | Discovered new exit (range 5) 6389 | -9/Scraptown | Entered Factory 6389 | -6/Factory | Evolved 8 slots: Power x1, Propulsion x2, Utility x5 6390 | -6/Factory | Identified exit to Factory 6534 | -6/Factory | Garrison activated, responded to threat 6723 | -6/Factory | Discovered exit to Factory (range 8) 6990 | -6/Factory | Build established: Skirmisher 7978 | -6/Factory | Cargo convoy interrupted 8054 | -6/Factory | Build established: Mutant 8059 | -6/Factory | Lost 6 allies 8170 | -6/Factory | Identified exit to Lower Caves 8607 | -6/Factory | Build established: Skirmisher 8633 | -6/Factory | Core integrity fell below 50% 8645 | -6/Factory | Entered Lower Caves 8675 | -6/Lower Caves | Lost 12 parts (1p3n6u2w) 8920 | -6/Lower Caves | Build established: Mutant 10124 | -6/Lower Caves | Encountered a Warlord checkpoint 10254 | -6/Lower Caves | Discovered new exit (range 11) 10317 | -6/Lower Caves | Identified exit to Lower Caves 10382 | -6/Lower Caves | System corruption reached 10% 10421 | -6/Lower Caves | Murdered 3 allies 10430 | -6/Lower Caves | Entered another Lower Caves area 10497 | -6/Lower Caves | Discovered exit to Factory (range 15) 10503 | -6/Lower Caves | Identified exit to Zion 11045 | -6/Lower Caves | Entered Zion 11215 | -6/Zion | System corruption cleaned by Quarantine Array 11260 | -6/Zion | Discovered new exit (range 15) 12158 | -6/Zion | Given the Hacking Drone Bay 12226 | -6/Zion | Turned away by Imprinter 12722 | -6/Zion | Found Prototype Special Weapon 12722 | -6/Zion | Identified RU-N14's Throwing Claymores 12726 | -6/Zion | Found RU-N14's Throwing Claymores 12729 | -6/Zion | Found RU-N14's Throwing Claymores 13651 | -6/Zion | Attacked by Zionites 13651 | -6/Zion | Warned about damaging Zion machinery 14323 | -6/Zion | Lost 4 parts (2n2u) 14375 | -6/Zion | Lost 4 parts (1p3w) 14394 | -6/Zion | Build established: Scavenger-Mutant 14578 | -6/Zion | Core integrity fell below 20% 14684 | -6/Zion | Destroyed by RU-N14 with RU-N14's Throwing Claymores Last Messages --------------- RU-N14: "Time for a live test!" RU-N14 pulls out a set of special claymores. 14650_ System corrupted: Autogun jammed. 14653_ IM-STL(z) suffers critical hit (Destroy). 14653_ IM-STL(z) destroyed. 14656_ Acquired 17 matter. 14664_ System corrupted: Matter fused (-6). 14670_ Mak. Leg severed. 14672_ System corrupted: Battle Rifle jammed. 14672_ Battle Rifle destroyed. 14672_ Mak. Leg destroyed. 14674_ Imp. Heat Sink destroyed. 14677_ The unstable cave ceiling collapses. 14678_ Autogun destroyed. 14678_ Mak. Leg destroyed. 14679_ System corrupted: Matter fused (-5). 14680_ Imp. Titanium Leg destroyed. 14680_ Mak. Power Source destroyed. 14680_ Hvy. Machine Gun destroyed. 14680_ Fission Core destroyed. Map ----- +----------------------------------------------------+ | ?????????????????????????????????????????????????? | | ?????????????????????????????????????????????????? | | ?????????????????????????????????????????????????? | | ?????????????????????????????????????????????????? | | ?????????????????????????????????????????????????? | | ?????????????????????????????????????????????????? | | ?????????????????????????????????????????????????? | | ????????#"""###??????????????????????????????????? | | ????????# !!""##?????????????????????????###?????? | | ????????#| ""#???????????????????????### ###???? | | ????????#""" ""#???????????????????????#!! !!#???? | | ????????### ["##???????????????????????#! !!#???? | | ????#??##" ####???????????????????????##" "##???? | | ????#"##"" ##########?????????????##" ##???? | | ???##""""" #"#"#""""#?????????????# "#???? | | ??"#"" """""""##??????####??# #???? | | ??#"" """####?###""####" ##### | | ###""" """"""#?#"#"""""""#"" #"" | | "####"""""" " """"""#??#"" """"" " | | ""###""#""" " # "#####" | | ""#"##""" "# """" ""#"#"" """ | | """""##" """ """ """"""" """ | | """"""" = "" """"" """ | | """" *% " c | | " """" """""c """" | | #"" """""" @ "#"" """ """ | | """"""""""" """""""""""" | | ""##""""""" """""""##"#"" | | ! "###""" """"" """"####""" | | [ ""#"#""" """" """"""""" | | "" % """"" """" """""""" | | " = | | [ "" ! | | !%"""""" =% %//= / % [ | | [""#""""" =* "= " " " """ ! "" | | %""##""" /% " """"" "" | | *""#####" [%% " # "##""""""" | | "######" * """ ####""""#""" | | """"#"#"" % " """"" "" ???#####"#"" | | """""#"""" "" """""" "# #? ?????????####" | | """""""""" """""##""""""" ??????????????##" | | " ""#"####""#"##?????????????##"" | | """#""#??######??????????????#""" | | """""" """"#????????????????????????##""" | | """"" ""###???????????????????????###""" | | "####" !* ##?????????????????????????#"""" | | ""##""" =[% ##???????????????????#####?##" | | "###" %*/%= "##??????????????????#"""###"" | | "#### =%/%"""#??????????????????#"" " "" | | " ""###""/%!=[""#??????????????????#" " | +----------------------------------------------------+ Best States ------------- Heat Dissipation 83 Energy Generation 31 Energy Capacity 380 Matter Stores 300 Matter Capacity 300 Sight Range 16 Robot Scan Range 16 Terrain Scan Range 16 Terrain Scan Density 110 Jamming Range 12 Armor Coverage 825 Evasion (%) 40 Recoil Reduction 3 Particle Charging 20 Salvage Targeting 1 Item Schematics ----------------- Mni. Drone Bay | -6/Zion | Archive Lgt. Angular Momentum Engine | -6/Zion | Archive Imp. Proton Missile Launcher | -6/Zion | Archive Neutrino Core | -6/Zion | Archive Energy Well | -6/Zion | Archive Adv. Cooling System | -6/Zion | Archive Railgun | -6/Zion | Archive Antimatter Reactor | -6/Zion | Archive Arm. Leg | -6/Zion | Archive Adv. Plasma Cannon | -6/Zion | Archive Imp. Arc Projector | -6/Zion | Archive Imp. Remote Datajack | -6/Zion | Archive Lgt. Fission Core | -6/Zion | Archive Lrn. Phase Cannon | -6/Zion | Archive Robot Schematics ------------------ T-07 Excavator | -6/Zion | Archive P-60 Hacker | -6/Zion | Archive K-01 Serf | -6/Zion | Archive Fabricated ------------ Nothing Repaired ---------- Nothing Alien Tech Used ----------------- None Achievements -------------- None Challenges ------------ None Game ------ Seed ImpulseKineticStick Manual? 0 Play Time 01:43:21 Cumulative 388.8 hours Start 2025.06.02 @ 12:12:45 End 2025.06.02 @ 16:35:27 Sessions 5 Manual Loads 0 Difficulty Rogue Special Mode None Game No. 452 Rogue 452 Adventurer 0 Explorer 0 Win Type - Total 37 Types 27/0/7/3/0/0/0/0/0/0 Lore% 74 Gallery% 70 Achievement% 61 Wizard Run 0 Options --------- Layout 0 ASCII 0 Keyboard 1 Movement Numpad Keybinds 0 Fullscreen 1 Font 24/Smallcaps Map View 76x50 Zoom Use 0% Tactical HUD 1 Map Filters NONE Filters NONE Steam 1 RUN: 1f854ae7-6fc3-4b79-83d8-187b8caf9a26